Workbook

Sheet Sinus_IPM
A4: IPM Sine Point Calculation | J4: Insert application parameters of sine wave here
A6: Position [qc] | B6: Velocity [rpm] | C6: Delta t [ms] | D6: Point Nr. | E6: Acceleration [rpm/s] | F6: Time[ms] | H6: Parameters
A7: qc | B7: rpm | C7: ms | H7: Encoder resolution [imp/turn]: | J7: 1024 | K7: [imp/turn]
A8: =(J10*SIN((C8*D8)*(2*PI())/J9-(PI()/2)))+J10 -> 0 | B8: =(J10*COS((C8*D8)/(2*PI())*J9-(PI()/2))) -> 1.225148455e-13 | C8: =J8 -> 20 | D8: 0 | F8: =D8*C8 -> 0 | H8: Delta-T [ms]: | J8: 20 | K8: [ms] | M8: frequenzy to time
A9: =(J10*SIN((C9*D9)*(2*PI())/J9-(PI()/2)))+J10 -> 15.77059737 | B9: =$J$10*2*PI()/$J$9*COS((C9*D9*2*PI()/$J$9)-PI()/2)*1000/(4*$J$7)*60 -> 23.07105268 | C9: =C8 -> 20 | D9: 1 | E9: =(-1)*$J$10*(2*PI()/$J$9)^2*SIN((C9*D9*2*PI()/$J$9)-PI()/2)*1000^2/(4*$J$7)*60 -> 1147.474175 | F9: =D9*C9 -> 20 | H9: Sine wave period [ms]: | J9: 1000 | K9: [ms] | M9: 50 | N9: =1/M9*1000 -> 20
A10: =(J10*SIN((C10*D10)*(2*PI())/J9-(PI()/2)))+J10 -> 62.83367774 | B10: =$J$10*2*PI()/$J$9*COS((C10*D10*2*PI()/$J$9)-PI()/2)*1000/(4*$J$7)*60 -> 45.77826109 | C10: =C9 -> 20 | D10: 2 | E10: =(-1)*$J$10*(2*PI()/$J$9)^2*SIN((C10*D10*2*PI()/$J$9)-PI()/2)*1000^2/(4*$J$7)*60 -> 1120.25773 | F10: 40 | H10: Amplitude [qc]: | J10: 2000 | K10: [qc] | M10: [HZ] | N10: [ms]
A11: =(J10*SIN((C11*D11)*(2*PI())/J9-(PI()/2)))+J10 -> 140.4470282 | B11: 67.76351896 | C11: 20 | D11: 3 | E11: =(-1)*$J$10*(2*PI()/$J$9)^2*SIN((C11*D11*2*PI()/$J$9)-PI()/2)*1000^2/(4*$J$7)*60 -> 1075.374152 | F11: 60
A12: =($J$10*SIN((C12*D12)*(2*PI())/$J$9-(PI()/2)))+$J$10 -> 247.3866399 | B12: 88.68010567 | C12: 20 | D12: 4 | E12: 1013.531281 | F12: 80
A13: =($J$10*SIN((C13*D13)*(2*PI())/$J$9-(PI()/2)))+$J$10 -> 381.9660113 | B13: 108.1981541 | C13: 20 | D13: 5 | E13: 935.7044166 | F13: 100
A14: 542.0627452 | B14: 126.0098531 | C14: 20 | D14: 6 | E14: 843.1209344 | F14: 120 | H14: System Limitations
A15: 725.1520205 | B15: 141.8343013 | C15: 20 | D15: 7 | E15: 737.2409314 | F15: 140 | H15: MAX Acceleration [rpm/s]: | J15: =MAX(E9:E91) -> 1156.594266 | K15: [rpm/s]
A16: 928.34641 | B16: 155.421938 | C16: 20 | D16: 8 | E16: 619.7341985 | F16: 160 | H16: MAX Velocity [rpm]: | J16: =MAX(B8:B88) -> 183.7144593 | K16: [rpm]
A17: 1148.441417 | B17: 166.5584778 | C17: 20 | D17: 9 | E17: 492.4538871 | F17: 180
A18: 1381.966011 | B18: 175.0682909 | C18: 20 | D18: 10 | E18: 357.4072837 | F18: 200
A19: 1625.237371 | B19: 180.8171725 | C19: 20 | D19: 11 | E19: 216.724154 | F19: 220
A20: 1874.418961 | B20: 183.7144593 | C20: 20 | D20: 12 | E20: 72.62315483 | F20: 240
A21: 2125.581039 | B21: 183.7144593 | C21: 20 | D21: 13 | E21: -72.62315483 | F21: 260
A22: 2374.762629 | B22: 180.8171725 | C22: 20 | D22: 14 | E22: -216.724154 | F22: 280
A23: 2618.033989 | B23: 175.0682909 | C23: 20 | D23: 15 | E23: -357.4072837 | F23: 300
A24: 2851.558583 | B24: 166.5584778 | C24: 20 | D24: 16 | E24: -492.4538871 | F24: 320
A25: 3071.65359 | B25: 155.421938 | C25: 20 | D25: 17 | E25: -619.7341985 | F25: 340
A26: 3274.847979 | B26: 141.8343013 | C26: 20 | D26: 18 | E26: -737.2409314 | F26: 360
A27: 3457.937255 | B27: 126.0098531 | C27: 20 | D27: 19 | E27: -843.1209344 | F27: 380
A28: 3618.033989 | B28: 108.1981541 | C28: 20 | D28: 20 | E28: -935.7044166 | F28: 400
A29: 3752.61336 | B29: 88.68010567 | C29: 20 | D29: 21 | E29: -1013.531281 | F29: 420
A30: 3859.552972 | B30: 67.76351896 | C30: 20 | D30: 22 | E30: -1075.374152 | F30: 440
A31: 3937.166322 | B31: 45.77826109 | C31: 20 | D31: 23 | E31: -1120.25773 | F31: 460
A32: 3984.229403 | B32: 23.07105268 | C32: 20 | D32: 24 | E32: -1147.474175 | F32: 480
A33: 4000 | B33: 1.127612515e-14 | C33: 20 | D33: 25 | E33: -1156.594266 | F33: 500
A34: 3984.229403 | B34: -23.07105268 | C34: 20 | D34: 26 | E34: -1147.474175 | F34: 520
A35: 3937.166322 | B35: -45.77826109 | C35: 20 | D35: 27 | E35: -1120.25773 | F35: 540
A36: 3859.552972 | B36: -67.76351896 | C36: 20 | D36: 28 | E36: -1075.374152 | F36: 560
A37: 3752.61336 | B37: -88.68010567 | C37: 20 | D37: 29 | E37: -1013.531281 | F37: 580
A38: 3618.033989 | B38: -108.1981541 | C38: 20 | D38: 30 | E38: -935.7044166 | F38: 600
A39: 3457.937255 | B39: -126.0098531 | C39: 20 | D39: 31 | E39: -843.1209344 | F39: 620
A40: 3274.847979 | B40: -141.8343013 | C40: 20 | D40: 32 | E40: -737.2409314 | F40: 640
A41: 3071.65359 | B41: -155.421938 | C41: 20 | D41: 33 | E41: -619.7341985 | F41: 660
A42: 2851.558583 | B42: -166.5584778 | C42: 20 | D42: 34 | E42: -492.4538871 | F42: 680
A43: 2618.033989 | B43: -175.0682909 | C43: 20 | D43: 35 | E43: -357.4072837 | F43: 700
A44: 2374.762629 | B44: -180.8171725 | C44: 20 | D44: 36 | E44: -216.724154 | F44: 720
A45: 2125.581039 | B45: -183.7144593 | C45: 20 | D45: 37 | E45: -72.62315483 | F45: 740
A46: 1874.418961 | B46: -183.7144593 | C46: 20 | D46: 38 | E46: 72.62315483 | F46: 760
A47: 1625.237371 | B47: -180.8171725 | C47: 20 | D47: 39 | E47: 216.724154 | F47: 780
A48: 1381.966011 | B48: =$J$10*2*PI()/$J$9*COS((C48*D48*2*PI()/$J$9)-PI()/2)*1000/(4*$J$7)*60 -> -175.0682909 | C48: 20 | D48: 40 | E48: 357.4072837 | F48: 800
A49: 1148.441417 | B49: -166.5584778 | C49: 20 | D49: 41 | E49: 492.4538871 | F49: 820
A50: 928.34641 | B50: -155.421938 | C50: 20 | D50: 42 | E50: 619.7341985 | F50: 840
A51: 725.1520205 | B51: -141.8343013 | C51: 20 | D51: 43 | E51: 737.2409314 | F51: 860
A52: 542.0627452 | B52: -126.0098531 | C52: 20 | D52: 44 | E52: 843.1209344 | F52: 880
A53: 381.9660113 | B53: -108.1981541 | C53: 20 | D53: 45 | E53: 935.7044166 | F53: 900
A54: 247.3866399 | B54: -88.68010567 | C54: 20 | D54: 46 | E54: 1013.531281 | F54: 920
A55: 140.4470282 | B55: -67.76351896 | C55: 20 | D55: 47 | E55: 1075.374152 | F55: 940
A56: 62.83367774 | B56: -45.77826109 | C56: 20 | D56: 48 | E56: 1120.25773 | F56: 960
A57: 15.77059737 | B57: -23.07105268 | C57: 20 | D57: 49 | E57: 1147.474175 | F57: 980
A58: 0 | B58: -3.382837546e-14 | C58: 20 | D58: 50 | E58: 1156.594266 | F58: 1000
A59: 15.77059737 | B59: 23.07105268 | C59: 20 | D59: 51 | E59: 1147.474175 | F59: 1020
A60: 62.83367774 | B60: 45.77826109 | C60: 20 | D60: 52 | E60: 1120.25773 | F60: 1040
A61: 140.4470282 | B61: 67.76351896 | C61: 20 | D61: 53 | E61: 1075.374152 | F61: 1060
A62: 247.3866399 | B62: 88.68010567 | C62: 20 | D62: 54 | E62: 1013.531281 | F62: 1080
A63: 381.9660113 | B63: 108.1981541 | C63: 20 | D63: 55 | E63: 935.7044166 | F63: 1100
A64: 542.0627452 | B64: 126.0098531 | C64: 20 | D64: 56 | E64: 843.1209344 | F64: 1120
A65: 725.1520205 | B65: 141.8343013 | C65: 20 | D65: 57 | E65: 737.2409314 | F65: 1140
A66: 928.34641 | B66: 155.421938 | C66: 20 | D66: 58 | E66: 619.7341985 | F66: 1160
A67: 1148.441417 | B67: 166.5584778 | C67: 20 | D67: 59 | E67: 492.4538871 | F67: 1180
A68: 1381.966011 | B68: 175.0682909 | C68: 20 | D68: 60 | E68: 357.4072837 | F68: 1200
A69: 1625.237371 | B69: 180.8171725 | C69: 20 | D69: 61 | E69: 216.724154 | F69: 1220
A70: 1874.418961 | B70: 183.7144593 | C70: 20 | D70: 62 | E70: 72.62315483 | F70: 1240
A71: 2125.581039 | B71: 183.7144593 | C71: 20 | D71: 63 | E71: -72.62315483 | F71: 1260
A72: 2374.762629 | B72: 180.8171725 | C72: 20 | D72: 64 | E72: -216.724154 | F72: 1280
A73: 2618.033989 | B73: 175.0682909 | C73: 20 | D73: 65 | E73: -357.4072837 | F73: =D73*C73 -> 1300
A74: 2851.558583 | B74: =$J$10*2*PI()/$J$9*COS((C74*D74*2*PI()/$J$9)-PI()/2)*1000/(4*$J$7)*60 -> 166.5584778 | C74: =C73 -> 20 | D74: 66 | E74: -492.4538871 | F74: 1320
A75: 3071.65359 | B75: 155.421938 | C75: 20 | D75: 67 | E75: =(-1)*$J$10*(2*PI()/$J$9)^2*SIN((C75*D75*2*PI()/$J$9)-PI()/2)*1000^2/(4*$J$7)*60 -> -619.7341985 | F75: 1340
A76: 3274.847979 | B76: 141.8343013 | C76: 20 | D76: 68 | E76: -737.2409314 | F76: 1360
A77: =($J$10*SIN((C77*D77)*(2*PI())/$J$9-(PI()/2)))+$J$10 -> 3457.937255 | B77: 126.0098531 | C77: 20 | D77: 69 | E77: -843.1209344 | F77: 1380
A78: 3618.033989 | B78: 108.1981541 | C78: 20 | D78: 70 | E78: -935.7044166 | F78: 1400
A79: 3752.61336 | B79: 88.68010567 | C79: 20 | D79: 71 | E79: -1013.531281 | F79: 1420
A80: 3859.552972 | B80: 67.76351896 | C80: 20 | D80: 72 | E80: -1075.374152 | F80: 1440
A81: 3937.166322 | B81: 45.77826109 | C81: 20 | D81: 73 | E81: -1120.25773 | F81: 1460
A82: 3984.229403 | B82: 23.07105268 | C82: 20 | D82: 74 | E82: -1147.474175 | F82: 1480
A83: 4000 | B83: 5.638062576e-14 | C83: 20 | D83: 75 | E83: -1156.594266 | F83: 1500
A84: 3984.229403 | B84: -23.07105268 | C84: 20 | D84: 76 | E84: -1147.474175 | F84: 1520
A85: 3937.166322 | B85: -45.77826109 | C85: 20 | D85: 77 | E85: -1120.25773 | F85: 1540
A86: 3859.552972 | B86: -67.76351896 | C86: 20 | D86: 78 | E86: -1075.374152 | F86: 1560
A87: 3752.61336 | B87: -88.68010567 | C87: 20 | D87: 79 | E87: -1013.531281 | F87: 1580
A88: 3618.033989 | B88: -108.1981541 | C88: 20 | D88: 80 | E88: -935.7044166 | F88: 1600
A89: =($J$10*SIN((C89*D89)*(2*PI())/$J$9-(PI()/2)))+$J$10 -> 3457.937255 | B89: =$J$10*2*PI()/$J$9*COS((C89*D89*2*PI()/$J$9)-PI()/2)*1000/(4*$J$7)*60 -> -126.0098531 | C89: 20 | D89: 81 | E89: =(-1)*$J$10*(2*PI()/$J$9)^2*SIN((C89*D89*2*PI()/$J$9)-PI()/2)*1000^2/(4*$J$7)*60 -> -843.1209344 | F89: 1620
A90: 3274.847979 | B90: -141.8343013 | C90: 20 | D90: 82 | E90: -737.2409314 | F90: 1640
A91: 3071.65359 | B91: -155.421938 | C91: 20 | D91: 83 | E91: -619.7341985 | F91: 1660
A92: 2851.558583 | B92: -166.5584778 | C92: 20 | D92: 84 | E92: -492.4538871 | F92: 1680
A93: 2618.033989 | B93: -175.0682909 | C93: 20 | D93: 85 | E93: -357.4072837 | F93: 1700
A94: 2374.762629 | B94: -180.8171725 | C94: 20 | D94: 86 | E94: -216.724154 | F94: 1720
A95: 2125.581039 | B95: -183.7144593 | C95: 20 | D95: 87 | E95: -72.62315483 | F95: 1740
A96: 1874.418961 | B96: -183.7144593 | C96: 20 | D96: 88 | E96: 72.62315483 | F96: 1760
A97: 1625.237371 | B97: -180.8171725 | C97: 20 | D97: 89 | E97: 216.724154 | F97: 1780
A98: 1381.966011 | B98: -175.0682909 | C98: 20 | D98: 90 | E98: 357.4072837 | F98: 1800
A99: 1148.441417 | B99: -166.5584778 | C99: 20 | D99: 91 | E99: 492.4538871 | F99: 1820
A100: 928.34641 | B100: -155.421938 | C100: 20 | D100: 92 | E100: 619.7341985 | F100: 1840
A101: 725.1520205 | B101: -141.8343013 | C101: 20 | D101: 93 | E101: 737.2409314 | F101: 1860
A102: 542.0627452 | B102: -126.0098531 | C102: 20 | D102: 94 | E102: 843.1209344 | F102: 1880
A103: 381.9660113 | B103: -108.1981541 | C103: 20 | D103: 95 | E103: 935.7044166 | F103: 1900
A104: 247.3866399 | B104: -88.68010567 | C104: 20 | D104: 96 | E104: 1013.531281 | F104: 1920
A105: 140.4470282 | B105: -67.76351896 | C105: 20 | D105: 97 | E105: 1075.374152 | F105: 1940
A106: 62.83367774 | B106: -45.77826109 | C106: 20 | D106: 98 | E106: 1120.25773 | F106: 1960
A107: 15.77059737 | B107: -23.07105268 | C107: 20 | D107: 99 | E107: 1147.474175 | F107: 1980
A108: 0 | B108: -7.893287607e-14 | C108: 20 | D108: 100 | E108: 1156.594266 | F108: 2000
A109: 15.77059737 | B109: 23.07105268 | C109: 20 | D109: 101 | E109: 1147.474175 | F109: 2020
A110: 62.83367774 | B110: 45.77826109 | C110: 20 | D110: 102 | E110: 1120.25773 | F110: 2040
A111: 140.4470282 | B111: 67.76351896 | C111: 20 | D111: 103 | E111: 1075.374152 | F111: 2060
A112: 247.3866399 | B112: 88.68010567 | C112: 20 | D112: 104 | E112: 1013.531281 | F112: 2080
A113: 381.9660113 | B113: 108.1981541 | C113: 20 | D113: 105 | E113: 935.7044166 | F113: 2100
A114: 542.0627452 | B114: 126.0098531 | C114: 20 | D114: 106 | E114: 843.1209344 | F114: 2120
A115: 725.1520205 | B115: 141.8343013 | C115: 20 | D115: 107 | E115: 737.2409314 | F115: 2140
A116: 928.34641 | B116: 155.421938 | C116: 20 | D116: 108 | E116: 619.7341985 | F116: 2160
A117: 1148.441417 | B117: 166.5584778 | C117: 20 | D117: 109 | E117: 492.4538871 | F117: 2180
A118: 1381.966011 | B118: 175.0682909 | C118: 20 | D118: 110 | E118: 357.4072837 | F118: 2200
A119: 1625.237371 | B119: 180.8171725 | C119: 20 | D119: 111 | E119: 216.724154 | F119: 2220
A120: 1874.418961 | B120: 183.7144593 | C120: 20 | D120: 112 | E120: 72.62315483 | F120: 2240
A121: 2125.581039 | B121: 183.7144593 | C121: 20 | D121: 113 | E121: -72.62315483 | F121: 2260
A122: 2374.762629 | B122: 180.8171725 | C122: 20 | D122: 114 | E122: -216.724154 | F122: 2280
A123: 2618.033989 | B123: 175.0682909 | C123: 20 | D123: 115 | E123: -357.4072837 | F123: 2300
A124: 2851.558583 | B124: 166.5584778 | C124: 20 | D124: 116 | E124: -492.4538871 | F124: 2320
A125: 3071.65359 | B125: 155.421938 | C125: 20 | D125: 117 | E125: -619.7341985 | F125: 2340
A126: 3274.847979 | B126: 141.8343013 | C126: 20 | D126: 118 | E126: -737.2409314 | F126: 2360
A127: 3457.937255 | B127: 126.0098531 | C127: 20 | D127: 119 | E127: -843.1209344 | F127: 2380
A128: 3618.033989 | B128: 108.1981541 | C128: 20 | D128: 120 | E128: -935.7044166 | F128: 2400
A129: 3752.61336 | B129: 88.68010567 | C129: 20 | D129: 121 | E129: -1013.531281 | F129: 2420
A130: 3859.552972 | B130: 67.76351896 | C130: 20 | D130: 122 | E130: -1075.374152 | F130: 2440
A131: 3937.166322 | B131: 45.77826109 | C131: 20 | D131: 123 | E131: -1120.25773 | F131: 2460
A132: 3984.229403 | B132: 23.07105268 | C132: 20 | D132: 124 | E132: -1147.474175 | F132: 2480
A133: 4000 | B133: 1.014851264e-13 | C133: 20 | D133: 125 | E133: -1156.594266 | F133: 2500
A134: 3984.229403 | B134: -23.07105268 | C134: 20 | D134: 126 | E134: -1147.474175 | F134: 2520
A135: 3937.166322 | B135: -45.77826109 | C135: 20 | D135: 127 | E135: -1120.25773 | F135: 2540
A136: 3859.552972 | B136: -67.76351896 | C136: 20 | D136: 128 | E136: -1075.374152 | F136: 2560
A137: 3752.61336 | B137: -88.68010567 | C137: 20 | D137: 129 | E137: -1013.531281 | F137: =D137*C137 -> 2580
A138: 3618.033989 | B138: -108.1981541 | C138: =C137 -> 20 | D138: 130 | E138: -935.7044166 | F138: 2600
A139: 3457.937255 | B139: -126.0098531 | C139: 20 | D139: 131 | E139: -843.1209344 | F139: 2620
A140: 3274.847979 | B140: -141.8343013 | C140: 20 | D140: 132 | E140: -737.2409314 | F140: 2640
A141: 3071.65359 | B141: -155.421938 | C141: 20 | D141: 133 | E141: -619.7341985 | F141: 2660
A142: 2851.558583 | B142: -166.5584778 | C142: 20 | D142: 134 | E142: -492.4538871 | F142: 2680
A143: 2618.033989 | B143: -175.0682909 | C143: 20 | D143: 135 | E143: -357.4072837 | F143: 2700
A144: 2374.762629 | B144: -180.8171725 | C144: 20 | D144: 136 | E144: -216.724154 | F144: 2720
A145: 2125.581039 | B145: -183.7144593 | C145: 20 | D145: 137 | E145: -72.62315483 | F145: 2740
A146: 1874.418961 | B146: -183.7144593 | C146: 20 | D146: 138 | E146: 72.62315483 | F146: 2760
A147: 1625.237371 | B147: -180.8171725 | C147: 20 | D147: 139 | E147: 216.724154 | F147: 2780
A148: 1381.966011 | B148: -175.0682909 | C148: 20 | D148: 140 | E148: 357.4072837 | F148: 2800
A149: 1148.441417 | B149: -166.5584778 | C149: 20 | D149: 141 | E149: 492.4538871 | F149: 2820
A150: 928.34641 | B150: -155.421938 | C150: 20 | D150: 142 | E150: 619.7341985 | F150: 2840
A151: 725.1520205 | B151: -141.8343013 | C151: 20 | D151: 143 | E151: 737.2409314 | F151: 2860
A152: 542.0627452 | B152: -126.0098531 | C152: 20 | D152: 144 | E152: 843.1209344 | F152: 2880
A153: =($J$10*SIN((C153*D153)*(2*PI())/$J$9-(PI()/2)))+$J$10 -> 381.9660113 | B153: =$J$10*2*PI()/$J$9*COS((C153*D153*2*PI()/$J$9)-PI()/2)*1000/(4*$J$7)*60 -> -108.1981541 | C153: 20 | D153: 145 | E153: =(-1)*$J$10*(2*PI()/$J$9)^2*SIN((C153*D153*2*PI()/$J$9)-PI()/2)*1000^2/(4*$J$7)*60 -> 935.7044166 | F153: 2900
A154: 247.3866399 | B154: -88.68010567 | C154: 20 | D154: 146 | E154: 1013.531281 | F154: 2920
A155: 140.4470282 | B155: -67.76351896 | C155: 20 | D155: 147 | E155: 1075.374152 | F155: 2940
A156: 62.83367774 | B156: -45.77826109 | C156: 20 | D156: 148 | E156: 1120.25773 | F156: 2960
A157: 15.77059737 | B157: -23.07105268 | C157: 20 | D157: 149 | E157: 1147.474175 | F157: 2980
A158: 0 | B158: -4.510250484e-13 | C158: 20 | D158: 150 | E158: 1156.594266 | F158: 3000
A159: 15.77059737 | B159: 23.07105268 | C159: 20 | D159: 151 | E159: 1147.474175 | F159: 3020
A160: 62.83367774 | B160: 45.77826109 | C160: 20 | D160: 152 | E160: 1120.25773 | F160: 3040
A161: 140.4470282 | B161: 67.76351896 | C161: 20 | D161: 153 | E161: 1075.374152 | F161: 3060
A162: 247.3866399 | B162: 88.68010567 | C162: 20 | D162: 154 | E162: 1013.531281 | F162: 3080
A163: 381.9660113 | B163: 108.1981541 | C163: 20 | D163: 155 | E163: 935.7044166 | F163: 3100
A164: 542.0627452 | B164: 126.0098531 | C164: 20 | D164: 156 | E164: 843.1209344 | F164: 3120
A165: 725.1520205 | B165: 141.8343013 | C165: 20 | D165: 157 | E165: 737.2409314 | F165: 3140
A166: 928.34641 | B166: 155.421938 | C166: 20 | D166: 158 | E166: 619.7341985 | F166: 3160
A167: 1148.441417 | B167: 166.5584778 | C167: 20 | D167: 159 | E167: 492.4538871 | F167: 3180
A168: 1381.966011 | B168: 175.0682909 | C168: 20 | D168: 160 | E168: 357.4072837 | F168: 3200
A169: 1625.237371 | B169: 180.8171725 | C169: 20 | D169: 161 | E169: 216.724154 | F169: 3220
A170: 1874.418961 | B170: 183.7144593 | C170: 20 | D170: 162 | E170: 72.62315483 | F170: 3240
A171: 2125.581039 | B171: 183.7144593 | C171: 20 | D171: 163 | E171: -72.62315483 | F171: 3260
A172: 2374.762629 | B172: 180.8171725 | C172: 20 | D172: 164 | E172: -216.724154 | F172: 3280
A173: 2618.033989 | B173: 175.0682909 | C173: 20 | D173: 165 | E173: -357.4072837 | F173: 3300
A174: 2851.558583 | B174: 166.5584778 | C174: 20 | D174: 166 | E174: -492.4538871 | F174: 3320
A175: 3071.65359 | B175: 155.421938 | C175: 20 | D175: 167 | E175: -619.7341985 | F175: 3340
A176: 3274.847979 | B176: 141.8343013 | C176: 20 | D176: 168 | E176: -737.2409314 | F176: 3360
A177: 3457.937255 | B177: 126.0098531 | C177: 20 | D177: 169 | E177: -843.1209344 | F177: 3380
A178: 3618.033989 | B178: 108.1981541 | C178: 20 | D178: 170 | E178: -935.7044166 | F178: 3400
A179: 3752.61336 | B179: 88.68010567 | C179: 20 | D179: 171 | E179: -1013.531281 | F179: 3420
A180: 3859.552972 | B180: 67.76351896 | C180: 20 | D180: 172 | E180: -1075.374152 | F180: 3440
A181: 3937.166322 | B181: 45.77826109 | C181: 20 | D181: 173 | E181: -1120.25773 | F181: 3460
A182: 3984.229403 | B182: 23.07105268 | C182: 20 | D182: 174 | E182: -1147.474175 | F182: 3480
A183: 4000 | B183: -1.803980447e-13 | C183: 20 | D183: 175 | E183: -1156.594266 | F183: 3500
A184: 3984.229403 | B184: -23.07105268 | C184: 20 | D184: 176 | E184: -1147.474175 | F184: 3520
A185: 3937.166322 | B185: -45.77826109 | C185: 20 | D185: 177 | E185: -1120.25773 | F185: 3540
A186: 3859.552972 | B186: -67.76351896 | C186: 20 | D186: 178 | E186: -1075.374152 | F186: 3560
A187: 3752.61336 | B187: -88.68010567 | C187: 20 | D187: 179 | E187: -1013.531281 | F187: 3580
A188: 3618.033989 | B188: -108.1981541 | C188: 20 | D188: 180 | E188: -935.7044166 | F188: 3600
A189: 3457.937255 | B189: -126.0098531 | C189: 20 | D189: 181 | E189: -843.1209344 | F189: 3620
A190: 3274.847979 | B190: -141.8343013 | C190: 20 | D190: 182 | E190: -737.2409314 | F190: 3640
A191: 3071.65359 | B191: -155.421938 | C191: 20 | D191: 183 | E191: -619.7341985 | F191: 3660
A192: 2851.558583 | B192: -166.5584778 | C192: 20 | D192: 184 | E192: -492.4538871 | F192: 3680
A193: 2618.033989 | B193: -175.0682909 | C193: 20 | D193: 185 | E193: -357.4072837 | F193: 3700
A194: 2374.762629 | B194: -180.8171725 | C194: 20 | D194: 186 | E194: -216.724154 | F194: 3720
A195: 2125.581039 | B195: -183.7144593 | C195: 20 | D195: 187 | E195: -72.62315483 | F195: 3740
A196: 1874.418961 | B196: -183.7144593 | C196: 20 | D196: 188 | E196: 72.62315483 | F196: 3760
A197: 1625.237371 | B197: -180.8171725 | C197: 20 | D197: 189 | E197: 216.724154 | F197: 3780
A198: 1381.966011 | B198: -175.0682909 | C198: 20 | D198: 190 | E198: 357.4072837 | F198: 3800
A199: 1148.441417 | B199: -166.5584778 | C199: 20 | D199: 191 | E199: 492.4538871 | F199: 3820
A200: 928.34641 | B200: -155.421938 | C200: 20 | D200: 192 | E200: 619.7341985 | F200: 3840
A201: 725.1520205 | B201: -141.8343013 | C201: 20 | D201: 193 | E201: 737.2409314 | F201: =D201*C201 -> 3860
A202: 542.0627452 | B202: -126.0098531 | C202: =C201 -> 20 | D202: 194 | E202: 843.1209344 | F202: 3880
A203: 381.9660113 | B203: -108.1981541 | C203: 20 | D203: 195 | E203: 935.7044166 | F203: 3900
A204: 247.3866399 | B204: -88.68010567 | C204: 20 | D204: 196 | E204: 1013.531281 | F204: 3920
... 1204 more rows
